fUST/lending_fUST_20250403
["ID","MTS","AMOUNT","RATE_DAILY","PERIOD"]
[357066729,1743684654167,-2101.76,0.00018904,2]
[357066730,1743684654177,-500.0,0.00018904,2]
[357066731,1743684654194,-1070.64,0.00018904,2]
[357066732,1743684654203,-562.06,0.00018904,2]
[357066733,1743684654213,-500.0,0.00018904,2]
[357066734,1743684654223,-500.0,0.00018904,2]
[357066735,1743684654233,-500.0,0.00018904,2]
[357066736,1743684654242,-591.48,0.00018904,2]
[357066737,1743684654252,-1155.32,0.00018904,2]
[357066738,1743684654261,-542.63,0.00018904,2]
[357066739,1743684654270,-500.0,0.00018904,2]
[357066740,1743684654280,-3432.19,0.00018904,2]
[357066741,1743684654289,-1341.41,0.00018904,2]
[357066742,1743684654298,-1613.8,0.00018904,2]
[357066743,1743684654307,-500.0,0.00018904,2]
[357066744,1743684654316,-500.0,0.00018904,2]
[357066745,1743684654325,-675.31,0.00018904,2]
[357066746,1743684654334,-616.6,0.00018904,2]
[357066747,1743684654344,-500.0,0.00018904,2]
[357066748,1743684654353,-1262.01,0.00018904,2]
[357066749,1743684654362,-500.0,0.00018904,2]
[357066750,1743684654372,-500.0,0.00018904,2]
[357066751,1743684654381,-3696.95,0.00018904,2]
[357066752,1743684654391,-500.0,0.00018904,2]
[357066753,1743684654400,-500.0,0.00018904,2]
[357066754,1743684654409,-575.02,0.00018904,2]
[357066755,1743684654418,-101437.56,0.00018904,2]
[357066756,1743684654427,-196.08,0.00018904,2]
[357066757,1743684654441,-714.09,0.00018904,2]
[357066758,1743684654450,-546.55,0.00018904,2]
[357066759,1743684654460,-500.0,0.00018904,2]
[357066760,1743684654470,-500.0,0.00018904,2]
[357066761,1743684654480,-563.87,0.00018904,2]
[357066762,1743684654489,-500.0,0.00018904,2]
[357066763,1743684654498,-591.16,0.00018904,2]
[357066764,1743684654507,-746.01,0.00018904,2]
[357066765,1743684654517,-162.82393114,0.00018973,2]
[357066766,1743684654527,-500.0,0.00018973,2]
[357066767,1743684654537,-361415.78168379,0.00019,2]
[357066768,1743684654547,-2626.24296251,0.00019,2]
[357066769,1743684654556,-250.0,0.00019,2]
[357066770,1743684654565,-250.0,0.00019,2]
[357066771,1743684654575,-250.0,0.00019,2]
[357066772,1743684654587,-250.0,0.00019,2]
[357066773,1743684654597,-250.0,0.00019,2]
[357066774,1743684654607,-250.0,0.00019,2]
[357066775,1743684654617,-250.0,0.00019,2]
[357066776,1743684654626,-250.0,0.00019,2]
[357066777,1743684654636,-609.26552881,0.00019022,2]
[357066778,1743684654645,-419.10900234,0.00019112,2]
[357066779,1743684654654,-10339.90482553,0.00019141,2]
[357066780,1743684654664,-151.0,0.00019166,2]
[357066781,1743684654673,-541.98693725,0.00019177,4]
[357066782,1743684654683,-500.0,0.00019178,2]
[357066783,1743684654694,-540.45,0.00019178,2]
[357066784,1743684654703,-502.92,0.00019178,2]
[357066785,1743684654712,-554.0,0.00019178,2]
[357066786,1743684654721,-500.0,0.00019178,2]
[357066787,1743684654730,-186.00599188,0.00019178,2]
[357066788,1743684654740,-500.0,0.00019178,2]
[357066789,1743684654749,-500.0,0.00019178,2]
[357066790,1743684654758,-500.0,0.00019178,2]
[357066791,1743684654767,-500.0,0.00019178,2]
[357066792,1743684654776,-513.7744869,0.00019178,2]
[357066793,1743684654785,-500.0,0.00019178,2]
[357066794,1743684654795,-500.0,0.00019178,2]
[357066795,1743684654804,-500.0,0.00019178,2]
[357066796,1743684654813,-500.0,0.00019178,2]
[357066797,1743684654823,-500.0,0.00019178,2]
[357066798,1743684654832,-500.0,0.00019178,2]
[357066799,1743684654841,-500.0,0.00019178,2]
[357066800,1743684654851,-500.0,0.00019178,2]
[357066801,1743684654859,-207.06,0.00019178,2]
[357066802,1743684654869,-572.4617857,0.00019178,2]
[357066803,1743684654879,-543.51,0.00019178,2]
[357066804,1743684654888,-1333.2,0.00019178,2]
[357066805,1743684654898,-939.32,0.00019178,2]
[357066806,1743684654907,-500.0,0.00019178,2]
[357066807,1743684654917,-776.84,0.00019178,2]
[357066808,1743684654926,-500.0,0.00019178,2]
[357066809,1743684654938,-1578.42,0.00019178,2]
[357066810,1743684654947,-737.08,0.00019178,2]
[357066811,1743684654956,-658.75,0.00019178,2]
[357066812,1743684654965,-804.66,0.00019178,2]
[357066813,1743684654976,-681.42,0.00019178,2]
[357066814,1743684654986,-1658.04,0.00019178,2]
[357066815,1743684654998,-500.0,0.00019178,2]
[357066816,1743684655007,-3229.2,0.00019178,2]
[357066817,1743684655017,-644.71,0.00019178,2]
[357066818,1743684655028,-1492.91,0.00019178,2]
[357066819,1743684655037,-4305.14,0.00019178,2]
[357066820,1743684655047,-1043.2,0.00019178,2]
[357066821,1743684655057,-5897.63,0.00019178,2]
[357066822,1743684655067,-2101.76,0.00019178,2]
[357066823,1743684655077,-500.0,0.00019178,2]
[357066824,1743684655088,-1070.64,0.00019178,2]
[357066825,1743684655173,-562.06,0.00019178,2]
[357066826,1743684655195,-500.0,0.00019178,2]
[357066827,1743684655205,-500.0,0.00019178,2]
[357066828,1743684655215,-500.0,0.00019178,2]
[357066829,1743684655225,-591.48,0.00019178,2]
[357066830,1743684655235,-1155.32,0.00019178,2]
[357066831,1743684655244,-542.63,0.00019178,2]
[357066832,1743684655254,-500.0,0.00019178,2]
[357066833,1743684655263,-3432.19,0.00019178,2]
[357066834,1743684655272,-1341.41,0.00019178,2]
[357066835,1743684655281,-1613.8,0.00019178,2]
[357066836,1743684655291,-500.0,0.00019178,2]
[357066837,1743684655300,-500.0,0.00019178,2]
[357066838,1743684655309,-675.31,0.00019178,2]
[357066839,1743684655318,-616.6,0.00019178,2]
[357066840,1743684655328,-500.0,0.00019178,2]
[357066841,1743684655338,-1262.01,0.00019178,2]
[357066842,1743684655347,-500.0,0.00019178,2]
[357066843,1743684655356,-608.52,0.00019178,2]
[357066844,1743684655366,-3696.95,0.00019178,2]
[357066845,1743684655375,-312.77,0.00019178,2]
[357066846,1743684655384,-500.0,0.00019178,2]
[357066847,1743684655394,-101437.56,0.00019178,2]
[357066848,1743684655403,-714.09,0.00019178,2]
[357066849,1743684655412,-546.55,0.00019178,2]
[357066850,1743684655422,-500.0,0.00019178,2]
[357066851,1743684655432,-563.87,0.00019178,2]
[357066852,1743684655443,-500.0,0.00019178,2]
[357066853,1743684655452,-591.16,0.00019178,2]
[357066854,1743684655462,-746.01,0.00019178,2]
[357066855,1743684655472,-1072.40156372,0.00019187,2]
[357066856,1743684655482,-13683.29948401,0.000192,2]
[357066857,1743684655492,-160.0,0.00019205,2]
[357066858,1743684655501,-1296.74962742,0.00019329,2]
[357066859,1743684655510,-500.0,0.00019452,2]
[357066860,1743684655520,-540.45,0.00019452,2]
[357066861,1743684655530,-502.92,0.00019452,2]
[357066862,1743684655540,-500.0,0.00019452,2]
[357066863,1743684655549,-500.0,0.00019452,2]
[357066864,1743684655559,-500.0,0.00019452,2]
[357066865,1743684655568,-500.0,0.00019452,2]
[357066866,1743684655578,-266.22,0.00019452,2]
[357066867,1743684655588,-500.0,0.00019452,2]
[357066868,1743684655598,-500.0,0.00019452,2]
[357066869,1743684655608,-500.0,0.00019452,2]
[357066870,1743684655618,-500.0,0.00019452,2]
[357066871,1743684655627,-500.0,0.00019452,2]
[357066872,1743684655638,-361.38,0.00019452,2]
[357066873,1743684655647,-500.0,0.00019452,2]
[357066874,1743684655658,-543.51,0.00019452,2]
[357066875,1743684655667,-1333.2,0.00019452,2]
[357066876,1743684655677,-939.32,0.00019452,2]
[357066877,1743684655689,-500.0,0.00019452,2]
[357066878,1743684655699,-776.84,0.00019452,2]
[357066879,1743684655708,-500.0,0.00019452,2]
[357066880,1743684655718,-1578.42,0.00019452,2]
[357066881,1743684655728,-737.08,0.00019452,2]
[357066882,1743684655738,-658.75,0.00019452,2]
[357066883,1743684655749,-804.66,0.00019452,2]
[357066884,1743684655758,-681.42,0.00019452,2]
[357066885,1743684655768,-1658.04,0.00019452,2]
[357066886,1743684655778,-500.0,0.00019452,2]
[357066887,1743684655788,-3229.2,0.00019452,2]
[357066888,1743684655797,-644.71,0.00019452,2]
[357066889,1743684655806,-1492.91,0.00019452,2]
[357066890,1743684655817,-4305.14,0.00019452,2]
[357066891,1743684655827,-1043.2,0.00019452,2]
[357066892,1743684655837,-5897.63,0.00019452,2]
[357066893,1743684655848,-2101.76,0.00019452,2]
[357066894,1743684655858,-500.0,0.00019452,2]
[357066895,1743684655868,-1070.64,0.00019452,2]
[357066896,1743684655878,-562.06,0.00019452,2]
[357066897,1743684655888,-500.0,0.00019452,2]
[357066898,1743684655898,-500.0,0.00019452,2]
[357066899,1743684655907,-500.0,0.00019452,2]
[357066900,1743684655917,-591.48,0.00019452,2]
[357066901,1743684655926,-1155.32,0.00019452,2]
[357066902,1743684655940,-542.63,0.00019452,2]
[357066903,1743684655951,-500.0,0.00019452,2]
[357066904,1743684655961,-3432.19,0.00019452,2]
[357066905,1743684655972,-1341.41,0.00019452,2]
[357066906,1743684655982,-1613.8,0.00019452,2]
[357066907,1743684655993,-500.0,0.00019452,2]
[357066908,1743684656005,-507.29,0.00019452,2]
[357066909,1743684656014,-675.31,0.00019452,2]
[357066910,1743684656024,-616.6,0.00019452,2]
[357066911,1743684656035,-470.4,0.00019452,2]
[357066912,1743684656045,-500.0,0.00019452,2]
[357066913,1743684656055,-1262.01,0.00019452,2]
[357066914,1743684656066,-3696.95,0.00019452,2]
[357066915,1743684656075,-500.0,0.00019452,2]
[357066916,1743684656085,-101437.56,0.00019452,2]
[357066917,1743684656095,-714.09,0.00019452,2]
[357066918,1743684656104,-546.55,0.00019452,2]
[357066919,1743684656114,-500.0,0.00019452,2]
[357066920,1743684656124,-563.87,0.00019452,2]
[357066921,1743684656134,-500.0,0.00019452,2]
[357066922,1743684656143,-591.16,0.00019452,2]
[357066923,1743684656153,-10339.90482553,0.00019555,2]
[357066924,1743684656163,-587.0,0.0001963,2]
[357066925,1743684656172,-808.5,0.00019706,7]
[357066926,1743684656182,-500.0,0.00019726,2]
[357066927,1743684656193,-540.45,0.00019726,2]
[357066928,1743684656202,-502.92,0.00019726,2]
[357066929,1743684656212,-181.79500219,0.00019726,2]
[357066930,1743684656222,-500.0,0.00019726,2]
[357066931,1743684656232,-500.0,0.00019726,2]
[357066932,1743684656242,-500.0,0.00019726,2]
[357066933,1743684656252,-500.0,0.00019726,2]
[357066934,1743684656262,-500.0,0.00019726,2]
[357066935,1743684656271,-500.0,0.00019726,2]
[357066936,1743684656281,-500.0,0.00019726,2]
[357066937,1743684656291,-500.0,0.00019726,2]
[357066938,1743684656300,-500.0,0.00019726,2]
[357066939,1743684656310,-543.51,0.00019726,2]
[357066940,1743684656320,-1333.2,0.00019726,2]
[357066941,1743684656330,-939.32,0.00019726,2]
[357066942,1743684656340,-500.0,0.00019726,2]
[357066943,1743684656349,-776.84,0.00019726,2]
[357066944,1743684656359,-500.0,0.00019726,2]
[357066945,1743684656369,-1578.42,0.00019726,2]
[357066946,1743684656378,-737.08,0.00019726,2]
[357066947,1743684656388,-658.75,0.00019726,2]
[357066948,1743684656397,-804.66,0.00019726,2]
[357066949,1743684656407,-681.42,0.00019726,2]
[357066950,1743684656417,-1658.04,0.00019726,2]
[357066951,1743684656427,-509.42260961,0.00019726,2]
[357066952,1743684656441,-3229.2,0.00019726,2]
[357066953,1743684656450,-644.71,0.00019726,2]
[357066954,1743684656460,-1492.91,0.00019726,2]
[357066955,1743684656470,-4305.14,0.00019726,2]
[357066956,1743684656480,-1043.2,0.00019726,2]
[357066957,1743684656490,-5897.63,0.00019726,2]
[357066958,1743684656500,-1785.35601524,0.00019726,2]
[357066959,1743684657087,-392.53038122,0.00016438,2]
[357066960,1743684657097,-1408.31,0.00016712,2]
[357066961,1743684657107,-1408.31,0.00016986,2]
[357066962,1743684657118,-1408.31,0.0001726,2]
[357066963,1743684657127,-999.10947342,0.00017391,2]
[357066964,1743684657138,-1408.31,0.00017534,2]
[357066965,1743684657148,-1408.31,0.00017808,2]
[357066966,1743684657158,-1408.31,0.00018082,2]
[357066967,1743684657168,-1408.31,0.00018356,2]
[357066968,1743684657178,-1408.31,0.0001863,2]
[357066969,1743684657191,-1122.08993303,0.00018904,2]
[357066970,1743684657409,-510.95630305,0.00016438,2]
[357066971,1743684657419,-286.22006697,0.00018904,2]
[357066972,1743684657429,-1408.31,0.00019178,2]
[357066973,1743684657442,-746.01,0.00019452,2]
[357066974,1743684657452,-101.24592798,0.00019452,2]
[357066975,1743684657464,-1307.06407202,0.00019452,2]
[357066976,1743684657474,-316.40398476,0.00019726,2]
[357066977,1743684657484,-500.0,0.00019726,2]
[357066978,1743684657494,-728.51070897,0.00019726,2]
[357066979,1743684657507,-342.12929103,0.00019726,2]
[357066980,1743684657516,-562.06,0.00019726,2]
[357066981,1743684657526,-406.62,0.00019726,2]
[357066982,1743684657536,-500.0,0.00019726,2]
[357066983,1743684657546,-283.9,0.00019726,2]
[357066984,1743684657555,-591.48,0.00019726,2]
[357066985,1743684657565,-1155.32,0.00019726,2]
[357066986,1743684657574,-542.63,0.00019726,2]
[357066987,1743684657585,-500.0,0.00019726,2]
[357066988,1743684657594,-3432.19,0.00019726,2]
[357066989,1743684657604,-1341.41,0.00019726,2]
[357066990,1743684657613,-1613.8,0.00019726,2]
[357066991,1743684657622,-211.49,0.00019726,2]
[357066992,1743684657631,-675.31,0.00019726,2]
[357066993,1743684657640,-616.6,0.00019726,2]
[357066994,1743684657650,-1262.01,0.00019726,2]
[357066995,1743684657659,-500.0,0.00019726,2]
[357066996,1743684657668,-337.45069551,0.00019726,2]
[357066997,1743684657680,-3359.49930449,0.00019726,2]
[357066998,1743684657692,-500.0,0.00019726,2]
[357066999,1743684657701,-9335.02991641,0.00019726,2]
[357067000,1743684657713,-92102.53008359,0.00019726,2]
[357067001,1743684657722,-714.09,0.00019726,2]
[357067002,1743684657732,-546.55,0.00019726,2]
[357067003,1743684657741,-500.0,0.00019726,2]
[357067004,1743684657751,-563.87,0.00019726,2]
[357067005,1743684657761,-500.0,0.00019726,2]
[357067006,1743684657771,-591.16,0.00019726,2]
[357067007,1743684657780,-746.01,0.00019726,2]
[357067008,1743684657790,-1408.31,0.00019726,2]
[357067009,1743684657800,-215.0738,0.0001993,2]
[357067010,1743684657809,-10339.90482553,0.00019969,2]
[357067011,1743684657819,-500.0,0.00019973,2]
[357067012,1743684657828,-1000.0,0.0002,2]
[357067013,1743684657838,-1806.0,0.0002,2]
[357067014,1743684657847,-1000.0,0.0002,20]
[357067015,1743684657857,-15359.76925871,0.0002,2]
[357067016,1743684657867,-3316.10307338,0.0002,2]
[357067017,1743684658013,-500.0,0.00016438,2]
[357067018,1743684658023,-478.154999,0.00016438,2]
[357067019,1743684658033,-500.0,0.00016712,2]
[357067020,1743684658042,-234.210758,0.00016985,2]
[357067021,1743684658054,-21.18162802,0.00016985,2]
[357067022,1743684658064,-500.0,0.00016986,2]
[357067023,1743684658076,-500.0,0.0001726,2]
[357067024,1743684658168,-500.0,0.00017534,2]
[357067025,1743684658178,-500.0,0.00017808,2]
[357067026,1743684658189,-500.0,0.00018082,2]
[357067027,1743684658199,-500.0,0.00018356,2]
[357067028,1743684658209,-500.0,0.0001863,2]
[357067029,1743684658219,-500.0,0.00018904,2]
[357067030,1743684658228,-500.0,0.00019178,2]
[357067031,1743684658238,-500.0,0.00019452,2]
[357067032,1743684658248,-296683.89692662,0.0002,2]
[357067033,1743684658258,-5000.0,0.0002,2]
[357067034,1743684658267,-200.0,0.0002,2]
[357067035,1743684658276,-500.0,0.0002,2]
[357067036,1743684658286,-540.45,0.0002,2]
[357067037,1743684658295,-502.92,0.0002,2]
[357067038,1743684658304,-500.0,0.0002,2]
[357067039,1743684658314,-500.0,0.0002,2]
[357067040,1743684658324,-500.0,0.0002,2]
[357067041,1743684658333,-500.0,0.0002,2]
[357067042,1743684658342,-217.72590371,0.0002,2]
[357067043,1743684658351,-500.0,0.0002,2]
[357067044,1743684658361,-500.0,0.0002,2]
[357067045,1743684658371,-543.51,0.0002,2]
[357067046,1743684658380,-1333.2,0.0002,2]
[357067047,1743684658390,-939.32,0.0002,2]
[357067048,1743684658399,-500.0,0.0002,2]
[357067049,1743684658409,-500.0,0.0002,2]
[357067050,1743684658419,-1578.42,0.0002,2]
[357067051,1743684658428,-658.75,0.0002,2]
[357067052,1743684658439,-681.42,0.0002,2]
[357067053,1743684658450,-3229.2,0.0002,2]
[357067054,1743684658460,-644.71,0.0002,2]
[357067055,1743684658470,-1492.91,0.0002,2]
[357067056,1743684658480,-4305.14,0.0002,2]
[357067057,1743684658491,-1043.2,0.0002,2]
[357067058,1743684658500,-5897.63,0.0002,2]
[357067059,1743684658510,-2101.76,0.0002,2]
[357067060,1743684658519,-500.0,0.0002,2]
[357067061,1743684658531,-1070.64,0.0002,2]
[357067062,1743684658541,-562.06,0.0002,2]
[357067063,1743684658551,-197.78,0.0002,2]
[357067064,1743684658560,-591.48,0.0002,2]
[357067065,1743684658570,-1155.32,0.0002,2]
[357067066,1743684658580,-542.63,0.0002,2]
[357067067,1743684658590,-500.0,0.0002,2]
[357067068,1743684658600,-3432.19,0.0002,2]
[357067069,1743684658610,-1341.41,0.0002,2]
[357067070,1743684658620,-1613.8,0.0002,2]
[357067071,1743684658629,-675.31,0.0002,2]
[357067072,1743684658639,-616.6,0.0002,2]
[357067073,1743684658649,-1262.01,0.0002,2]
[357067074,1743684658659,-500.0,0.0002,2]
[357067075,1743684658668,-3696.95,0.0002,2]
[357067076,1743684658678,-500.0,0.0002,2]
[357067077,1743684658689,-9615.50103747,0.0002,2]
[357067078,1743684658702,-11300.0,0.0002,2]
[357067079,1743684658714,-1098.03260443,0.0002,2]
[357067146,1743685832412,-4000.0,0.00015445,2]
[357067147,1743685832423,-2761.1242623,0.00015446,2]
[357067148,1743685832433,-250.0,0.00015481,2]
[357067149,1743685832443,-1649.6639542,0.00015823,2]
[357067150,1743685832453,-201.541298,0.00016115,2]
[357067151,1743685832464,-201.541298,0.00016196,2]
[357067152,1743685832474,-300.0,0.00016422,2]
[357067153,1743685832485,-1851.06541304,0.00016423,2]
[357067154,1743685832495,-251.06842115,0.00016437,2]
[357067155,1743685832504,-500.0,0.00016438,2]
[357067156,1743685832514,-500.0,0.00016438,2]
[357067157,1743685832523,-500.0,0.00016438,2]
[357067158,1743685832535,-500.0,0.00016438,2]
[357067159,1743685832545,-500.0,0.00016438,2]
[357067160,1743685832555,-500.0,0.00016438,2]
[357067162,1743685832565,-500.0,0.00016438,2]
[357067164,1743685832575,-500.0,0.00016438,2]
[357067167,1743685832585,-500.0,0.00016438,2]
[357067169,1743685832594,-626.43444692,0.00016438,2]
[357067171,1743685832605,-500.0,0.00016438,2]
[357067173,1743685832614,-500.0,0.00016438,2]
[357067176,1743685832624,-500.0,0.00016438,2]
[357067178,1743685832634,-500.0,0.00016438,2]
[357067179,1743685832643,-500.0,0.00016438,2]
[357067180,1743685832652,-500.0,0.00016438,2]
[357067181,1743685832662,-591.02876201,0.00016438,2]
[357067182,1743685832671,-500.0,0.00016438,2]
[357067183,1743685832680,-500.0,0.00016438,2]
[357067184,1743685832690,-500.0,0.00016438,2]
[357067185,1743685832699,-500.0,0.00016438,2]
[357067186,1743685832708,-570.99,0.00016438,2]
[357067187,1743685832717,-500.0,0.00016438,2]
[357067188,1743685832727,-502.67,0.00016438,2]
[357067189,1743685832736,-500.0,0.00016438,2]
[357067190,1743685832745,-500.0,0.00016438,2]
[357067191,1743685832755,-500.0,0.00016438,2]
[357067192,1743685832765,-500.0,0.00016438,2]
[357067193,1743685832776,-500.0,0.00016438,2]
[357067194,1743685832785,-500.0,0.00016438,2]
[357067195,1743685832795,-500.0,0.00016438,2]
[357067196,1743685832805,-500.0,0.00016438,2]
[357067197,1743685832814,-500.0,0.00016438,2]
[357067198,1743685832824,-521.13102564,0.00016438,2]
[357067199,1743685832833,-500.0,0.00016438,2]
[357067200,1743685832843,-500.0,0.00016438,2]
[357067201,1743685832854,-500.0,0.00016438,2]
[357067202,1743685832864,-500.0,0.00016438,2]
[357067203,1743685832873,-653.73,0.00016438,2]
[357067204,1743685832882,-333.00781047,0.00016438,2]
[357067205,1743685832891,-500.0,0.00016438,2]
[357067206,1743685832901,-500.0,0.00016438,2]
[357067207,1743685832910,-500.0,0.00016438,2]
[357067208,1743685832919,-500.0,0.00016438,2]
[357067209,1743685832929,-500.0,0.00016438,2]
[357067210,1743685832939,-500.0,0.00016438,2]
[357067211,1743685832949,-500.0,0.00016438,2]
[357067212,1743685832958,-500.0,0.00016438,2]
[357067213,1743685832967,-500.0,0.00016438,2]
[357067214,1743685832977,-500.0,0.00016438,2]
[357067215,1743685832985,-500.0,0.00016438,2]
[357067216,1743685832995,-500.0,0.00016438,2]
[357067217,1743685833004,-500.0,0.00016438,2]
[357067218,1743685833013,-500.0,0.00016438,2]
[357067219,1743685833022,-500.0,0.00016438,2]
[357067220,1743685833032,-200.0,0.00016438,2]
[357067221,1743685833041,-500.0,0.00016438,2]
[357067222,1743685833050,-500.0,0.00016438,2]
[357067223,1743685833060,-500.0,0.00016438,2]
[357067224,1743685833069,-500.0,0.00016438,2]
[357067225,1743685833210,-500.0,0.00016438,2]
[357067226,1743685833221,-500.0,0.00016438,2]
[357067227,1743685833231,-500.0,0.00016438,2]
[357067228,1743685833241,-500.0,0.00016438,2]
[357067229,1743685833251,-500.0,0.00016438,2]
[357067230,1743685833261,-500.0,0.00016438,2]
[357067231,1743685833270,-500.0,0.00016438,2]
[357067232,1743685833280,-500.0,0.00016438,2]
[357067233,1743685833290,-500.0,0.00016438,2]
[357067234,1743685833300,-500.0,0.00016438,2]
[357067235,1743685833311,-500.0,0.00016438,2]
[357067236,1743685833321,-500.0,0.00016438,2]
[357067237,1743685833331,-500.0,0.00016438,2]
[357067238,1743685833341,-500.0,0.00016438,2]
[357067239,1743685833352,-500.0,0.00016438,2]
[357067240,1743685833362,-500.0,0.00016438,2]
[357067241,1743685833371,-500.0,0.00016438,2]
[357067242,1743685833397,-500.0,0.00016438,2]
[357067243,1743685833408,-500.0,0.00016438,2]
[357067244,1743685833419,-1006.3,0.00016438,2]
[357067245,1743685833429,-500.0,0.00016438,2]
[357067246,1743685833439,-599.77,0.00016438,2]
[357067247,1743685833450,-2229.53,0.00016438,2]
[357067248,1743685833461,-500.0,0.00016438,2]
[357067249,1743685833471,-500.0,0.00016438,2]
[357067250,1743685833481,-500.0,0.00016438,2]
[357067251,1743685833491,-500.0,0.00016438,2]
[357067252,1743685833501,-500.0,0.00016438,2]
[357067253,1743685833512,-500.0,0.00016438,2]
[357067254,1743685833522,-500.0,0.00016438,2]
[357067255,1743685833532,-1797.17,0.00016438,2]
[357067256,1743685833542,-500.0,0.00016438,2]
[357067257,1743685833553,-500.0,0.00016438,2]
[357067258,1743685833564,-2251.16,0.00016438,2]
[357067259,1743685833574,-500.0,0.00016438,2]
[357067260,1743685833584,-500.0,0.00016438,2]
[357067261,1743685833595,-500.0,0.00016438,2]
[357067262,1743685833608,-500.0,0.00016438,2]
[357067263,1743685833618,-500.0,0.00016438,2]
[357067264,1743685833628,-500.0,0.00016438,2]
[357067265,1743685833639,-500.0,0.00016438,2]
[357067266,1743685833649,-500.0,0.00016438,2]
[357067267,1743685833659,-500.0,0.00016438,2]
[357067268,1743685833669,-500.0,0.00016438,2]
[357067269,1743685833679,-500.0,0.00016438,2]
[357067270,1743685833689,-500.0,0.00016438,2]
[357067271,1743685833699,-500.0,0.00016438,2]
[357067272,1743685833709,-500.0,0.00016438,2]
[357067273,1743685833718,-500.0,0.00016438,2]
[357067274,1743685833728,-500.0,0.00016438,2]
[357067275,1743685833738,-500.0,0.00016438,2]
[357067276,1743685833749,-500.0,0.00016438,2]
[357067277,1743685833758,-500.0,0.00016438,2]
[357067278,1743685833768,-500.0,0.00016438,2]
[357067279,1743685833778,-500.0,0.00016438,2]
[357067280,1743685833788,-500.0,0.00016438,2]
[357067281,1743685833797,-2356.42,0.00016438,2]
[357067282,1743685833807,-500.0,0.00016438,2]
[357067283,1743685833817,-500.0,0.00016438,2]
[357067284,1743685833826,-516.41960172,0.00016438,2]
[357067285,1743685833836,-500.0,0.00016438,2]
[357067286,1743685833846,-720.75,0.00016438,2]
[357067287,1743685833856,-500.0,0.00016438,2]
[357067288,1743685833866,-500.0,0.00016438,2]
[357067289,1743685833876,-500.0,0.00016438,2]
[357067290,1743685833886,-500.0,0.00016438,2]
[357067291,1743685833896,-701.56,0.00016438,2]
[357067292,1743685833905,-500.0,0.00016438,2]
[357067293,1743685833915,-1260.21,0.00016438,2]
[357067294,1743685833925,-500.0,0.00016438,2]
[357067295,1743685833934,-500.0,0.00016438,2]
[357067296,1743685833944,-500.0,0.00016438,2]
[357067297,1743685833953,-500.0,0.00016438,2]
[357067298,1743685833963,-1259.19,0.00016438,2]
[357067299,1743685833973,-500.0,0.00016438,2]
[357067300,1743685833983,-537.47534139,0.00016438,2]
[357067301,1743685833992,-1190.75,0.00016438,2]
[357067302,1743685834001,-500.0,0.00016438,2]
[357067303,1743685834014,-500.0,0.00016438,2]
[357067304,1743685834024,-500.0,0.00016438,2]